[Event "360 One Wealth GP-3 2024"]
[Site "Mumbai"]
[Date "2024.02.09"]
[Round "5.12"]
[White "Miranka Trishad"]
[Black "Shaurya Kaushal Shah"]
[Result "1-0"]
[ECO "C04"]
[WhiteElo "1341"]
[BlackElo "1063"]
[Annotator "NA RC"]
[PlyCount "81"]
[EventDate "2024.02.04"]
[EventType "swiss"]
[EventCountry "IND"]
[SourceTitle "playchess.com"]
[Source "ChessBase"]
[SourceQuality "1"]
[TimeControl "5400+30"]

1. e4 {[%emt 0:00:25]} e6 {[%emt 0:00:19]} 2. d4 {[%emt 0:00:13]} d5 {[%emt 0:00:15]} 3. Nd2 {[%emt 0:04:13]} Nc6 {[%emt 0:00:30]} 4. Ngf3 {[%emt 0:10:50]} Nf6 {[%emt 0:00:31]} 5. e5 {[%emt 0:00:29]} Nd7 {[%emt 0:01:03]} 6. c4 {[%emt 0:10:00]} Nb6 {[%emt 0:12:30]} 7. c5 {[%emt 0:03:10]} Nd7 {[%emt 0:00:38]} 8. Bb5 {[%emt 0:07:05]} f6 {[%emt 0:02:24]} 9. Qe2 {[%emt 0:02:31]} a6 {[%emt 0:02:36]} 10. Ba4 {[%emt 0:00:13]} Kf7 {[%emt 0:09:21]} 11. O-O {[%emt 0:14:33]} f5 {[%emt 0:11:06]} 12. Re1 {[%emt 0:00:00]} Be7 {[%emt 0:05:23]} 13. h3 {[%emt 0:03:56]} Nf8 {[%emt 0:05:05]} 14. Nh2 {[%emt 0:01:52]} Nxd4 {[%emt 0:04:30]} 15. Qd3 {[%emt 0:01:10]} Bxc5 {[%emt 0:06:55]} 16. b4 {[%emt 0:00:57]} Ba7 {[%emt 0:01:32]} 17. g4 {[%emt 0:00:18]} Qh4 {[%emt 0:05:31]} 18. Bb2 {[%emt 0:08:29]} Nc6 {[%emt 0:05:37]} 19. Re2 {[%emt 0:04:48]} Kg8 {[%emt 0:05:32]} 20. gxf5 {[%emt 0:06:24]} Qg5+ {[%emt 0:03:28]} 21. Kh1 {[%emt 0:01:13]} Qxf5 {[%emt 0:01:07]} 22. Qc3 {[%emt 0:00:05]} d4 {[%emt 0:01:10]} 23. Qc4 {[%emt 0:02:05]} Rb8 {[%emt 0:01:44]} 24. Bc2 {[%emt 0:00:40]} Qh5 {[%emt 0:00:42]} 25. Ne4 {[%emt 0:00:57]} Nxe5 {[%emt 0:01:27]} 26. Qxc7 {[%emt 0:00:40]} Qxe2 {[%emt 0:01:27]} 27. Rg1 {[%emt 0:10:20]} Neg6 {[%emt 0:02:08]} 28. Ng4 {[%emt 0:01:27]} Qf3+ {[%emt 0:00:50]} 29. Kh2 {[%emt 0:00:01]} Qf4+ {[%emt 0:00:46]} 30. Qxf4 {[%emt 0:00:06]} h5 {[%emt 0:00:48]} 31. Nef6+ {[%emt 0:01:16]} gxf6 {[%emt 0:01:50]} 32. Qxf6 {[%emt 0:00:32]} hxg4 {[%emt 0:01:14]} 33. Rxg4 {[%emt 0:00:30]} e5 {[%emt 0:02:30]} 34. Bxg6 {[%emt 0:00:24]} Rxh3+ {[%emt 0:00:32]} 35. Kxh3 {[%emt 0:00:07]} Bxg4+ {[%emt 0:00:10]} 36. Kxg4 {[%emt 0:00:04]} Nxg6 {[%emt 0:00:16]} 37. Qxg6+ {[%emt 0:00:01]} Kf8 {[%emt 0:00:37]} 38. b5 {[%emt 0:00:27]} axb5 {[%emt 0:00:40]} 39. Ba3+ {[%emt 0:00:02]} b4 {[%emt 0:00:16]} 40. Bxb4+ {[%emt 0:00:02]} Bc5 {[%emt 0:00:06]} 41. Bxc5# {[%emt 0:00:05]} 1-0

[Event "360 One Wealth GP-3 2024"]
[Site "Mumbai"]
[Date "2024.02.09"]
[Round "5.15"]
[White "Tanmay Sanjay More"]
[Black "Yuti Mayur Patel"]
[Result "1-0"]
[ECO "C29"]
[WhiteElo "1156"]
[BlackElo "1426"]
[Annotator "NA RC"]
[PlyCount "57"]
[EventDate "2024.02.04"]
[EventType "swiss"]
[EventCountry "IND"]
[SourceTitle "playchess.com"]
[Source "ChessBase"]
[SourceQuality "1"]
[TimeControl "5400+30"]

1. e4 e5 {[%emt 1:07:27]} 2. Nc3 Nf6 {[%emt 0:00:10]} 3. f4 d5 {[%emt 0:01:35]} 4. fxe5 Nxe4 5. Qf3 {[%emt 0:00:03]} Nxc3 {[%emt 0:02:06]} 6. bxc3 {[%emt 0:00:21]} Be7 {[%emt 0:01:29]} 7. d4 {[%emt 0:00:04]} O-O {[%emt 0:02:46]} 8. Bd3 {[%emt 0:00:08]} c5 {[%emt 0:06:09]} 9. Ne2 {[%emt 0:01:02]} Nc6 {[%emt 0:07:25]} 10. O-O {[%emt 0:01:56]} Be6 {[%emt 0:03:47]} 11. Be3 {[%emt 0:02:37]} Qd7 {[%emt 0:02:41]} 12. Ng3 {[%emt 0:04:20]} cxd4 {[%emt 0:08:28]} 13. cxd4 {[%emt 0:00:32]} Nb4 {[%emt 0:02:19]} 14. Bd2 {[%emt 0:17:44]} Nxd3 {[%emt 0:01:39]} 15. Qxd3 {[%emt 0:00:30]} Rac8 {[%emt 0:05:32]} 16. Nh5 {[%emt 0:07:03]} g6 {[%emt 0:22:25]} 17. Nf6+ {[%emt 0:00:57]} Bxf6 {[%emt 0:00:09]} 18. exf6 {[%emt 0:00:09]} Bf5 {[%emt 0:00:50]} 19. Qe3 {[%emt 0:01:31]} Qe6 {[%emt 0:01:48]} 20. Qg5 {[%emt 0:00:19]} h6 {[%emt 0:09:35]} 21. Qh4 {[%emt 0:00:50]} Rxc2 {[%emt 0:04:33]} 22. Rae1 {[%emt 0:04:43]} Qb6 {[%emt 0:02:25]} 23. Rxf5 {[%emt 0:02:13]} Rxd2 {[%emt 0:04:02]} 24. Qxh6 {[%emt 0:00:15]} Qxd4+ {[%emt 0:00:38]} 25. Kh1 {[%emt 0:00:09]} Qxf6 {[%emt 0:01:56]} 26. Rxf6 {[%emt 0:00:03]} Rxa2 {[%emt 0:00:30]} 27. Rf3 {[%emt 0:01:08]} Ra6 {[%emt 0:01:58]} 28. Rh3 {[%emt 0:00:14]} g5 {[%emt 0:00:07]} 29. Qh7# {[%emt 0:00:05]} 1-0

[Event "360 One Wealth GP-3 2024"]
[Site "Mumbai"]
[Date "2024.02.09"]
[Round "6.1"]
[White "Mishra Sanjeev"]
[Black "Arnav Mahesh Koli"]
[Result "1-0"]
[ECO "B07"]
[WhiteElo "1683"]
[BlackElo "1755"]
[Annotator "NA RC"]
[PlyCount "73"]
[EventDate "2024.02.04"]
[EventType "swiss"]
[EventCountry "IND"]
[SourceTitle "playchess.com"]
[Source "ChessBase"]
[SourceQuality "1"]
[TimeControl "5400+30"]

1. d4 {[%emt 0:01:09]} Nf6 {[%emt 0:00:01]} 2. Bf4 {[%emt 0:00:14]} d6 {[%emt 0:00:17]} 3. Nc3 {[%emt 0:00:13]} g6 {[%emt 0:00:07]} 4. e4 {[%emt 0:00:08]} Bg7 {[%emt 0:01:32]} 5. Qd2 {[%emt 0:00:05]} O-O {[%emt 0:00:08]} 6. Bh6 {[%emt 0:00:41]} c6 {[%emt 0:02:21]} 7. f3 {[%emt 0:00:16]} b5 {[%emt 0:01:18]} 8. Bxg7 {[%emt 0:00:15]} Kxg7 {[%emt 0:00:02]} 9. Bd3 {[%emt 0:00:37]} a5 {[%emt 0:01:37]} 10. Nge2 {[%emt 0:00:37]} Nbd7 {[%emt 0:01:44]} 11. g4 {[%emt 0:01:08]} Nb6 {[%emt 0:03:14]} 12. g5 {[%emt 0:01:18]} Ne8 {[%emt 0:07:30]} 13. h4 {[%emt 0:00:43]} b4 {[%emt 0:01:44]} 14. Nd1 {[%emt 0:00:28]} c5 {[%emt 0:00:02]} 15. Ne3 {[%emt 0:02:26]} Qc7 {[%emt 0:02:11]} 16. b3 {[%emt 0:01:19]} cxd4 {[%emt 0:15:34]} 17. Nxd4 {[%emt 0:00:11]} Qc5 {[%emt 0:00:08]} 18. Ne2 {[%emt 0:00:47]} Nc7 {[%emt 0:00:31]} 19. c3 {[%emt 0:05:14]} Ne6 {[%emt 0:11:03]} 20. cxb4 {[%emt 0:01:20]} axb4 {[%emt 0:06:09]} 21. Qb2+ {[%emt 0:05:29]} f6 {[%emt 0:01:53]} 22. Ng4 {[%emt 0:01:51]} Qa5 {[%emt 0:05:03]} 23. gxf6+ {[%emt 0:03:21]} exf6 {[%emt 0:00:09]} 24. h5 {[%emt 0:06:05]} gxh5 {[%emt 0:08:46]} 25. Ne3 {[%emt 0:01:27]} Ng5 {[%emt 0:00:18]} 26. f4 {[%emt 0:02:59]} Nf3+ {[%emt 0:01:49]} 27. Kf2 {[%emt 0:00:32]} Bg4 {[%emt 0:00:02]} 28. e5 {[%emt 0:05:31]} Qa7 {[%emt 0:07:22]} 29. exf6+ {[%emt 0:03:09]} Rxf6 {[%emt 0:00:11]} 30. Kg3 {[%emt 0:10:08]} Qd7 {[%emt 0:05:47]} 31. Nd4 {[%emt 0:02:45]} h4+ {[%emt 0:01:08]} 32. Rxh4 {[%emt 0:01:43]} Nxh4 {[%emt 0:00:06]} 33. Nxg4 {[%emt 0:00:06]} Nd5 {[%emt 0:16:05]} 34. Rh1 {[%emt 0:06:30]} Nc3 {[%emt 0:01:07]} 35. Rxh4 {[%emt 0:00:37]} Rg6 {[%emt 0:00:01]} 36. Bxg6 {[%emt 0:00:11]} hxg6 {[%emt 0:00:02]} 37. Rh7+ {[%emt 0:00:55]} 1-0

[Event "360 One Wealth GP-3 2024"]
[Site "Mumbai"]
[Date "2024.02.09"]
[Round "6.2"]
[White "Kulkarni, Vikramaditya"]
[Black "Kherdekar Arnav"]
[Result "1-0"]
[ECO "B33"]
[WhiteElo "2193"]
[BlackElo "1693"]
[Annotator "NA RC"]
[PlyCount "91"]
[EventDate "2024.02.04"]
[EventType "swiss"]
[EventCountry "IND"]
[SourceTitle "playchess.com"]
[Source "ChessBase"]
[SourceQuality "1"]
[TimeControl "5400+30"]

1. e4 {[%emt 0:41:06]} c5 {[%emt 0:00:12]} 2. Nf3 {[%emt 0:00:15]} Nc6 {[%emt 0:00:09]} 3. d4 {[%emt 0:00:57]} cxd4 {[%emt 0:00:09]} 4. Nxd4 {[%emt 0:00:03]} Nf6 {[%emt 0:00:09]} 5. Nc3 {[%emt 0:00:06]} e5 {[%emt 0:00:07]} 6. Nf5 {[%emt 0:02:52]} d5 {[%emt 0:00:09]} 7. exd5 {[%emt 0:00:05]} Bxf5 {[%emt 0:00:22]} 8. dxc6 {[%emt 0:00:03]} Qxd1+ {[%emt 0:02:52]} 9. Nxd1 {[%emt 0:00:03]} bxc6 {[%emt 0:00:07]} 10. Ne3 {[%emt 0:00:28]} Bg6 {[%emt 0:02:27]} 11. h4 {[%emt 0:36:07]} Bc5 {[%emt 0:02:05]} 12. Be2 {[%emt 0:10:45]} Nd5 {[%emt 0:10:24]} 13. h5 {[%emt 0:14:54]} Be4 {[%emt 0:00:51]} 14. Rh4 {[%emt 0:04:30]} f5 {[%emt 0:10:26]} 15. f3 {[%emt 0:14:08]} Nxe3 16. Bxe3 Be7 {[%emt 0:00:11]} 17. Rh3 {[%emt 0:01:02]} Bxc2 {[%emt 0:00:24]} 18. Rc1 {[%emt 0:01:31]} Ba4 {[%emt 0:00:53]} 19. f4 {[%emt 0:04:00]} e4 {[%emt 0:02:38]} 20. Bd4 {[%emt 0:02:33]} Rd8 {[%emt 0:10:13]} 21. Bxg7 {[%emt 0:00:32]} Rg8 {[%emt 0:01:11]} 22. h6 {[%emt 0:00:10]} Bb4+ {[%emt 0:00:59]} 23. Kf1 {[%emt 0:01:04]} Bd6 {[%emt 0:05:24]} 24. g3 {[%emt 0:02:26]} Bb5 {[%emt 0:01:04]} 25. Bxb5 {[%emt 0:01:06]} cxb5 26. Rh5 {[%emt 0:00:13]} Bf8 {[%emt 0:03:48]} 27. Rc7 {[%emt 0:00:25]} Bxg7 {[%emt 0:03:08]} 28. Rg5 {[%emt 0:01:07]} Rd6 {[%emt 0:03:29]} 29. hxg7 {[%emt 0:00:48]} Rd7 {[%emt 0:01:29]} 30. Rc8+ {[%emt 0:00:03]} Rd8 {[%emt 0:00:06]} 31. Rc7 {[%emt 0:00:14]} Rd7 {[%emt 0:00:10]} 32. Rc8+ {[%emt 0:00:10]} Rd8 {[%emt 0:00:02]} 33. Rc5 {[%emt 0:00:21]} Rd7 {[%emt 0:00:06]} 34. Rxb5 {[%emt 0:01:20]} Rgxg7 {[%emt 0:00:44]} 35. Rb8+ {[%emt 0:00:12]} Kf7 {[%emt 0:00:08]} 36. Rxf5+ {[%emt 0:00:05]} Ke6 {[%emt 0:02:03]} 37. Re5+ {[%emt 0:00:02]} Kd6 {[%emt 0:00:07]} 38. Rxe4 {[%emt 0:02:07]} Rxg3 {[%emt 0:00:02]} 39. Rd4+ {[%emt 0:00:06]} Kc7 {[%emt 0:00:21]} 40. Rxd7+ {[%emt 0:00:14]} Kxb8 {[%emt 0:01:12]} 41. Kf2 {[%emt 0:00:17]} Rh3 {[%emt 0:01:18]} 42. f5 {[%emt 0:00:31]} Rh2+ {[%emt 0:04:33]} 43. Ke3 {[%emt 0:00:22]} Rxb2 {[%emt 0:00:12]} 44. f6 {[%emt 0:00:17]} Kc8 {[%emt 0:01:39]} 45. Rxa7 {[%emt 0:00:31]} Rb6 {[%emt 0:00:17]} 46. f7 {[%emt 0:00:20]} 1-0

[Event "360 One Wealth GP-3 2024"]
[Site "Mumbai"]
[Date "2024.02.09"]
[Round "6.3"]
[White "Dodhiya Punit"]
[Black "Bartakke, Amardeep S."]
[Result "0-1"]
[ECO "B23"]
[WhiteElo "1369"]
[BlackElo "1961"]
[Annotator "NA RC"]
[PlyCount "106"]
[EventDate "2024.02.04"]
[EventType "swiss"]
[EventCountry "IND"]
[SourceTitle "playchess.com"]
[Source "ChessBase"]
[SourceQuality "1"]
[TimeControl "5400+30"]

1. e4 {[%emt 0:03:09]} c5 {[%emt 0:00:42]} 2. Nc3 {[%emt 0:00:29]} a6 {[%emt 0:00:06]} 3. f4 {[%emt 0:00:42]} b5 {[%emt 0:00:06]} 4. Nf3 {[%emt 0:00:47]} Bb7 {[%emt 0:00:05]} 5. d3 {[%emt 0:00:27]} e6 {[%emt 0:00:30]} 6. g3 {[%emt 0:00:53]} b4 {[%emt 0:00:22]} 7. Nb1 {[%emt 0:02:39]} d5 {[%emt 0:00:16]} 8. Qe2 {[%emt 0:00:53]} dxe4 {[%emt 0:04:55]} 9. dxe4 {[%emt 0:00:03]} Nf6 {[%emt 0:00:29]} 10. Nbd2 {[%emt 0:01:59]} Be7 {[%emt 0:00:55]} 11. Bg2 {[%emt 0:00:10]} O-O {[%emt 0:00:24]} 12. O-O {[%emt 0:00:08]} a5 {[%emt 0:00:21]} 13. Nc4 {[%emt 0:14:31]} Bxe4 {[%emt 0:03:59]} 14. h3 {[%emt 0:04:33]} Qc7 {[%emt 0:04:24]} 15. Be3 {[%emt 0:09:05]} Nbd7 {[%emt 0:01:38]} 16. g4 {[%emt 0:07:52]} Bb7 {[%emt 0:05:47]} 17. Rae1 {[%emt 0:13:01]} Nd5 {[%emt 0:03:46]} 18. Nfd2 {[%emt 0:08:02]} Bf6 {[%emt 0:04:24]} 19. Kh1 {[%emt 0:14:21]} Rad8 {[%emt 0:06:13]} 20. f5 {[%emt 0:00:00]} exf5 {[%emt 0:01:42]} 21. Rxf5 {[%emt 0:00:00]} Nxe3 {[%emt 0:01:29]} 22. Qxe3 {[%emt 0:02:11]} g6 {[%emt 0:00:00]} 23. Rff1 {[%emt 0:00:00]} Bd4 {[%emt 0:03:01]} 24. Qf4 {[%emt 0:05:13]} Bxg2+ {[%emt 0:02:39]} 25. Kxg2 {[%emt 0:00:49]} Qb7+ {[%emt 0:00:48]} 26. Kh2 {[%emt 0:00:00]} Qa6 {[%emt 0:00:20]} 27. b3 {[%emt 0:00:00]} Nf6 {[%emt 0:02:09]} 28. Ne4 {[%emt 0:04:57]} Nd5 {[%emt 0:03:45]} 29. Qf3 {[%emt 0:00:52]} a4 {[%emt 0:00:39]} 30. Ng5 {[%emt 0:01:59]} axb3 {[%emt 0:00:43]} 31. axb3 {[%emt 0:00:39]} Qa7 {[%emt 0:01:09]} 32. h4 {[%emt 0:00:52]} Qd7 {[%emt 0:03:39]} 33. h5 {[%emt 0:00:57]} Nf6 {[%emt 0:00:38]} 34. hxg6 {[%emt 0:01:14]} hxg6 {[%emt 0:00:44]} 35. Qh3 {[%emt 0:01:25]} Qxg4 {[%emt 0:01:27]} 36. Qh6 {[%emt 0:01:35]} Qh5+ {[%emt 0:00:50]} 37. Qxh5 {[%emt 0:00:02]} Nxh5 {[%emt 0:00:05]} 38. Re7 {[%emt 0:00:33]} Bf6 {[%emt 0:00:26]} 39. Rxf6 {[%emt 0:00:32]} Nxf6 {[%emt 0:00:04]} 40. Ne5 {[%emt 0:01:16]} Nd5 {[%emt 0:01:40]} 41. Rxf7 {[%emt 0:00:53]} Rxf7 {[%emt 0:00:21]} 42. Nexf7 {[%emt 0:00:08]} Re8 {[%emt 0:01:28]} 43. Nd6 {[%emt 0:01:13]} Re2+ {[%emt 0:00:27]} 44. Kg3 {[%emt 0:00:02]} Rxc2 {[%emt 0:00:23]} 45. Nge4 {[%emt 0:00:05]} Kg7 {[%emt 0:01:40]} 46. Kf3 {[%emt 0:00:29]} Nf6 {[%emt 0:01:25]} 47. Ng5 {[%emt 0:00:54]} Nd7 {[%emt 0:02:03]} 48. Nge4 {[%emt 0:00:30]} Ne5+ {[%emt 0:00:22]} 49. Kf4 {[%emt 0:00:53]} Nd3+ {[%emt 0:00:08]} 50. Ke3 {[%emt 0:00:01]} Nc1 {[%emt 0:00:37]} 51. Ne8+ {[%emt 0:01:25]} Kf8 {[%emt 0:00:16]} 52. N8d6 {[%emt 0:00:30]} Nxb3 {[%emt 0:02:01]} 53. Kd3 {[%emt 0:00:22]} Rc1 {[%emt 0:00:08]} 0-1

[Event "360 One Wealth GP-3 2024"]
[Site "Mumbai"]
[Date "2024.02.09"]
[Round "6.4"]
[White "Kapadi Yash"]
[Black "Miranka Trishad"]
[Result "1-0"]
[ECO "E05"]
[WhiteElo "1626"]
[BlackElo "1341"]
[Annotator "NA RC"]
[PlyCount "109"]
[EventDate "2024.02.04"]
[EventType "swiss"]
[EventCountry "IND"]
[SourceTitle "playchess.com"]
[Source "ChessBase"]
[SourceQuality "1"]
[TimeControl "5400+30"]

1. d4 {[%emt 0:07:37]} d5 {[%emt 0:00:36]} 2. g3 {[%emt 0:00:07]} e6 {[%emt 0:00:35]} 3. Bg2 {[%emt 0:00:02]} Nf6 {[%emt 0:00:09]} 4. Nf3 {[%emt 0:00:06]} Be7 {[%emt 0:00:09]} 5. O-O {[%emt 0:00:09]} O-O {[%emt 0:00:15]} 6. c4 {[%emt 0:00:05]} dxc4 {[%emt 0:00:34]} 7. Ne5 {[%emt 0:00:40]} Nc6 {[%emt 0:00:31]} 8. Nxc6 {[%emt 0:00:08]} bxc6 {[%emt 0:00:12]} 9. Na3 {[%emt 0:00:04]} Bxa3 {[%emt 0:06:01]} 10. bxa3 {[%emt 0:00:03]} Nd5 {[%emt 0:03:32]} 11. Qc2 {[%emt 0:16:35]} Rb8 {[%emt 0:06:37]} 12. Qxc4 {[%emt 0:10:56]} Rb6 {[%emt 0:05:51]} 13. Qc2 {[%emt 0:01:23]} Qf6 {[%emt 0:08:09]} 14. Rd1 {[%emt 0:08:53]} Qg6 {[%emt 0:24:43]} 15. Qd2 {[%emt 0:09:25]} f5 {[%emt 0:05:25]} 16. a4 {[%emt 0:00:31]} Ba6 {[%emt 0:04:42]} 17. Ba3 {[%emt 0:03:24]} Rfb8 {[%emt 0:00:43]} 18. Rac1 {[%emt 0:15:07]} f4 {[%emt 0:21:53]} 19. Bxd5 {[%emt 0:08:09]} cxd5 {[%emt 0:01:14]} 20. a5 {[%emt 0:00:20]} R6b7 {[%emt 0:03:23]} 21. Qxf4 {[%emt 0:00:40]} Bc4 {[%emt 0:00:28]} 22. a6 {[%emt 0:01:21]} Bxa6 {[%emt 0:01:21]} 23. Rxc7 {[%emt 0:00:54]} Rxc7 {[%emt 0:00:01]} 24. Qxc7 {[%emt 0:00:06]} Rc8 {[%emt 0:00:42]} 25. Qd7 {[%emt 0:01:52]} h6 {[%emt 0:01:05]} 26. Bc5 {[%emt 0:01:08]} Qe4 {[%emt 0:01:57]} 27. Re1 {[%emt 0:01:35]} Rb8 {[%emt 0:00:59]} 28. Qd6 {[%emt 0:01:44]} Rb1 {[%emt 0:00:29]} 29. Rxb1 {[%emt 0:02:05]} Qxb1+ {[%emt 0:00:02]} 30. Kg2 {[%emt 0:00:01]} Qe4+ {[%emt 0:00:46]} 31. f3 {[%emt 0:05:01]} Qxe2+ {[%emt 0:00:51]} 32. Kh3 {[%emt 0:00:00]} Qxf3 {[%emt 0:01:28]} 33. Qxa6 {[%emt 0:00:40]} Qf5+ {[%emt 0:01:06]} 34. Kg2 {[%emt 0:00:01]} Qc2+ {[%emt 0:00:20]} 35. Kf3 {[%emt 0:00:19]} Qe4+ {[%emt 0:00:25]} 36. Kf2 {[%emt 0:00:06]} Qh1 {[%emt 0:00:42]} 37. Qxe6+ {[%emt 0:00:14]} Kh7 {[%emt 0:00:33]} 38. Qf5+ {[%emt 0:00:02]} Kh8 {[%emt 0:00:29]} 39. Qc8+ {[%emt 0:00:31]} Kh7 {[%emt 0:00:03]} 40. Qh3 {[%emt 0:00:12]} Qb1 {[%emt 0:00:35]} 41. a3 {[%emt 0:01:18]} Qc2+ {[%emt 0:00:18]} 42. Ke3 {[%emt 0:00:02]} Qc1+ {[%emt 0:00:48]} 43. Kf3 {[%emt 0:00:51]} Qc2 {[%emt 0:00:39]} 44. Qe6 {[%emt 0:00:28]} g5 {[%emt 0:00:34]} 45. Qxd5 {[%emt 0:00:30]} Qd3+ {[%emt 0:00:32]} 46. Kg4 {[%emt 0:01:32]} h5+ {[%emt 0:00:30]} 47. Kxg5 {[%emt 0:00:16]} Qg6+ {[%emt 0:00:30]} 48. Kf4 {[%emt 0:00:05]} Qg4+ {[%emt 0:00:25]} 49. Ke3 {[%emt 0:00:06]} Qd1 {[%emt 0:00:24]} 50. Qf5+ {[%emt 0:01:11]} Kh8 {[%emt 0:00:15]} 51. Qf3 {[%emt 0:00:15]} Qb3+ {[%emt 0:00:13]} 52. Kf2 {[%emt 0:00:15]} Qa2+ {[%emt 0:00:19]} 53. Qe2 {[%emt 0:00:07]} Qf7+ {[%emt 0:00:30]} 54. Kg1 {[%emt 0:00:01]} Qg6 {[%emt 0:01:10]} 55. d5 {[%emt 0:00:31]} 1-0

[Event "360 One Wealth GP-3 2024"]
[Site "Mumbai"]
[Date "2024.02.09"]
[Round "6.5"]
[White "Soni Deepak R"]
[Black "Iyer Vivek"]
[Result "1-0"]
[ECO "A40"]
[WhiteElo "1445"]
[BlackElo "1359"]
[Annotator "NA RC"]
[PlyCount "58"]
[EventDate "2024.02.04"]
[EventType "swiss"]
[EventCountry "IND"]
[SourceTitle "playchess.com"]
[Source "ChessBase"]
[SourceQuality "1"]
[TimeControl "5400+30"]

1. d4 {[%emt 0:01:27]} e5 {[%emt 0:00:11]} 2. dxe5 {[%emt 0:00:20]} Nc6 {[%emt 0:00:21]} 3. Nf3 {[%emt 0:00:13]} d6 {[%emt 0:00:10]} 4. Bf4 {[%emt 0:00:26]} d5 {[%emt 0:03:29]} 5. e3 {[%emt 0:01:25]} Bg4 {[%emt 0:00:56]} 6. Be2 {[%emt 0:02:20]} Qd7 {[%emt 0:01:35]} 7. O-O {[%emt 0:00:49]} O-O-O {[%emt 0:00:15]} 8. Nd4 {[%emt 0:02:06]} Bxe2 {[%emt 0:01:13]} 9. Qxe2 {[%emt 0:00:14]} Nxd4 {[%emt 0:00:58]} 10. exd4 {[%emt 0:00:13]} Qf5 {[%emt 0:00:48]} 11. Bg3 {[%emt 0:01:11]} g5 {[%emt 0:00:41]} 12. e6 {[%emt 0:12:52]} Qxe6 {[%emt 0:05:54]} 13. Qxe6+ {[%emt 0:00:10]} fxe6 {[%emt 0:00:04]} 14. Be5 {[%emt 0:00:13]} Nh6 {[%emt 0:03:16]} 15. Bxh8 {[%emt 0:00:20]} Nf5 {[%emt 0:00:29]} 16. c3 {[%emt 0:00:35]} Nd6 {[%emt 0:00:29]} 17. Nd2 {[%emt 0:00:38]} Be7 {[%emt 0:00:14]} 18. Be5 {[%emt 0:00:24]} Nf5 {[%emt 0:00:43]} 19. Rfe1 {[%emt 0:00:21]} Kd7 {[%emt 0:00:09]} 20. Rad1 {[%emt 0:00:29]} h5 {[%emt 0:00:15]} 21. c4 {[%emt 0:00:14]} c6 {[%emt 0:00:16]} 22. cxd5 {[%emt 0:00:03]} exd5 {[%emt 0:00:10]} 23. Nf1 {[%emt 0:02:06]} Bb4 {[%emt 0:00:13]} 24. Re2 {[%emt 0:00:23]} h4 {[%emt 0:00:19]} 25. Ne3 {[%emt 0:00:50]} Nh6 {[%emt 0:00:29]} 26. Bg7 {[%emt 0:00:30]} Nf7 {[%emt 0:00:12]} 27. Ng4 {[%emt 0:00:20]} Nd6 {[%emt 0:00:16]} 28. Bf6 {[%emt 0:01:34]} Rg8 {[%emt 0:00:23]} 29. Be7 {[%emt 0:00:17]} Rg6 {[%emt 0:02:14]} 1-0

[Event "360 One Wealth GP-3 2024"]
[Site "Mumbai"]
[Date "2024.02.09"]
[Round "6.7"]
[White "Sunil, Vaidya"]
[Black "Muthe Dhruv"]
[Result "0-1"]
[ECO "A45"]
[WhiteElo "1402"]
[BlackElo "1169"]
[Annotator "NA RC"]
[PlyCount "112"]
[EventDate "2024.02.04"]
[EventType "swiss"]
[EventCountry "IND"]
[SourceTitle "playchess.com"]
[Source "ChessBase"]
[SourceQuality "1"]
[TimeControl "5400+30"]

1. d4 {[%emt 0:02:47]} Nf6 {[%emt 0:01:05]} 2. Nf3 {[%emt 0:00:09]} g6 {[%emt 0:00:08]} 3. Bg5 {[%emt 0:01:28]} Ne4 {[%emt 0:00:44]} 4. Bf4 {[%emt 0:00:29]} d6 {[%emt 0:00:36]} 5. Nbd2 {[%emt 0:00:49]} Nf6 {[%emt 0:09:58]} 6. e4 {[%emt 0:03:09]} Bg7 {[%emt 0:00:21]} 7. h3 {[%emt 0:01:49]} O-O {[%emt 0:03:48]} 8. c3 {[%emt 0:02:11]} Re8 {[%emt 0:04:53]} 9. Bc4 {[%emt 0:00:45]} Nh5 {[%emt 0:08:05]} 10. Bg5 {[%emt 0:01:44]} h6 {[%emt 0:00:23]} 11. g4 {[%emt 0:05:16]} hxg5 {[%emt 0:10:11]} 12. gxh5 {[%emt 0:00:14]} e6 {[%emt 0:03:32]} 13. hxg6 {[%emt 0:01:18]} f6 {[%emt 0:00:47]} 14. h4 {[%emt 0:03:46]} d5 {[%emt 0:01:24]} 15. Bb3 {[%emt 0:01:15]} g4 {[%emt 0:00:43]} 16. Ng1 {[%emt 0:01:02]} f5 {[%emt 0:00:53]} 17. e5 {[%emt 0:00:26]} c5 {[%emt 0:04:41]} 18. f3 {[%emt 0:07:48]} g3 {[%emt 0:02:35]} 19. f4 {[%emt 0:00:31]} Bh6 {[%emt 0:06:14]} 20. Qf3 {[%emt 0:02:29]} cxd4 {[%emt 0:00:40]} 21. cxd4 {[%emt 0:00:25]} Qb6 {[%emt 0:00:33]} 22. Ne2 {[%emt 0:01:24]} Nc6 {[%emt 0:00:37]} 23. Qc3 {[%emt 0:01:30]} Bd7 {[%emt 0:02:53]} 24. Rg1 {[%emt 0:12:43]} Rac8 {[%emt 0:01:12]} 25. Qe3 {[%emt 0:00:56]} Nb4 {[%emt 0:03:56]} 26. Rxg3 {[%emt 0:02:52]} Bb5 {[%emt 0:01:03]} 27. g7 {[%emt 0:01:26]} Nd3+ {[%emt 0:00:18]} 28. Kd1 {[%emt 0:04:45]} Nxb2+ {[%emt 0:00:22]} 29. Ke1 {[%emt 0:00:32]} Nd3+ {[%emt 0:03:16]} 30. Kd1 {[%emt 0:01:32]} Qd8 {[%emt 0:04:20]} 31. Rg5 {[%emt 0:05:51]} Bxg5 {[%emt 0:01:53]} 32. fxg5 {[%emt 0:00:52]} Kxg7 {[%emt 0:01:05]} 33. Rb1 {[%emt 0:05:19]} Qa5 {[%emt 0:05:51]} 34. Bc2 {[%emt 0:08:49]} Rxc2 {[%emt 0:07:01]} 35. Kxc2 {[%emt 0:06:39]} Qxa2+ {[%emt 0:00:12]} 36. Kd1 {[%emt 0:02:36]} Ba4+ {[%emt 0:00:08]} 37. Rb3 {[%emt 0:01:08]} Qa1+ {[%emt 0:01:16]} 38. Nc1 {[%emt 0:01:15]} Qxc1+ {[%emt 0:00:20]} 39. Ke2 {[%emt 0:00:16]} Bxb3 {[%emt 0:01:21]} 40. Nxb3 {[%emt 0:01:31]} Qxe3+ {[%emt 0:00:28]} 41. Kxe3 {[%emt 0:00:12]} Nb2 {[%emt 0:00:41]} 42. Nc5 {[%emt 0:01:42]} b6 {[%emt 0:00:20]} 43. Nd7 {[%emt 0:00:34]} Rh8 {[%emt 0:00:28]} 44. Nf6 {[%emt 0:01:52]} Rxh4 {[%emt 0:00:23]} 45. Ne8+ {[%emt 0:01:07]} Kg6 {[%emt 0:00:29]} 46. Nc7 {[%emt 0:01:05]} f4+ {[%emt 0:00:41]} 47. Kf3 {[%emt 0:00:25]} Kf5 {[%emt 0:00:11]} 48. g6 {[%emt 0:00:10]} Rg4 {[%emt 0:00:32]} 49. Ne8 {[%emt 0:01:20]} Rg3+ {[%emt 0:00:15]} 50. Kf2 {[%emt 0:00:38]} Nd3+ {[%emt 0:00:24]} 51. Ke2 {[%emt 0:00:56]} Re3+ {[%emt 0:00:21]} 52. Kd2 {[%emt 0:00:16]} Kxg6 {[%emt 0:00:06]} 53. Nc7 {[%emt 0:01:01]} Kf7 {[%emt 0:00:24]} 54. Nb5 {[%emt 0:00:15]} Nf2 {[%emt 0:00:30]} 55. Nxa7 {[%emt 0:00:22]} Ne4+ {[%emt 0:00:17]} 56. Kd1 {[%emt 0:00:15]} f3 {[%emt 0:00:01]} 0-1